bitfinex/quotes_SOLUSD_20250829
["timestamp","ask_amount","ask_price","bid_price","bid_amount"]
[1756430526979,6.6231506,213.07,213.03,4.69417452]
[1756430527180,6.6231506,213.07,213.03,5.37417452]
[1756430527575,6.6231506,213.06,213.03,5.37417452]
[1756430527776,26.66,213.12,213.04,0.68]
[1756430527987,39.78,213.11,213.04,0.68]
[1756430528201,6.6231506,213.08,213.04,0.68]
[1756430528500,26.0,213.15,213.05,0.68]
[1756430528796,6.6231506,213.11,213.05,0.68]
[1756430529004,0.66,213.16,213.06,6.6231506]
[1756430529305,10.1385424,213.14,213.07,0.68]
[1756430529504,0.66,213.13,213.04,0.68]
[1756430529684,10.1385424,213.05,213.0,0.68]
[1756430529886,10.1385424,213.05,213.01,0.68]
[1756430530278,39.82,213.08,213.01,0.68]
[1756430530279,10.1385424,213.06,213.01,0.68]
[1756430530991,39.82,213.08,213.01,0.68]
[1756430531190,10.1385424,213.06,213.0,4.69483568]
[1756430531395,10.1385424,213.06,213.0,5.37483568]
[1756430531596,10.1385424,213.06,213.0,17.11192488]
[1756430531902,10.1385424,213.08,213.02,10.1385424]
[1756430532079,0.66,213.12,213.03,10.8185424]
[1756430532080,10.1385424,213.09,213.03,10.8185424]
[1756430532397,10.1385424,213.07,213.03,0.68]
[1756430532600,10.1385424,213.06,213.0,26.57046728]
[1756430532981,0.66,213.09,212.98,4.69505731]
[1756430533179,10.1385424,213.02,212.98,5.37505731]
[1756430533405,0.66,213.08,212.98,17.11324868]
[1756430533612,10.1385424,213.05,213.0,4.69483568]
[1756430533792,10.1385424,213.06,213.01,0.68]
[1756430533995,10.1385424,213.05,213.01,0.68]
[1756430534308,10.1385424,213.02,212.96,4.6957175]
[1756430534491,10.1385424,213.02,212.97,0.68]
[1756430534684,10.1385424,213.02,212.96,26.57355366]
[1756430534685,39.74,213.05,212.98,10.8185424]
[1756430534886,10.1385424,213.05,212.99,10.8185424]
[1756430535095,39.74,213.08,213.0,10.1385424]
[1756430535294,10.1385424,213.04,212.97,13.59559401]
[1756430535498,0.66,213.07,212.96,16.43501126]
[1756430535499,10.1385424,213.03,212.96,16.43501126]
[1756430535691,10.1385424,213.0,212.96,4.6957175]
[1756430535993,0.66,213.03,212.96,4.6957175]
[1756430535994,10.1385424,212.99,212.96,4.6957175]
[1756430536191,10.1385424,212.97,212.94,4.69594091]
[1756430536400,39.74,213.07,212.94,4.69594091]
[1756430536401,10.1385424,212.96,212.94,4.69594091]
[1756430536794,10.1385424,212.96,212.91,0.68]
[1756430536998,10.1385424,212.93,212.88,14.801302]
[1756430537314,10.1385424,212.93,212.88,0.68]
[1756430537486,10.1385424,212.91,212.86,4.69792351]
[1756430537690,39.74,212.99,212.87,0.68]
[1756430537901,0.28432314,213.03,212.89,10.1385424]
[1756430537902,10.1385424,212.95,212.89,10.1385424]
[1756430538099,10.1385424,212.96,212.9,10.8185424]
[1756430538510,10.1385424,212.97,212.91,0.68]
[1756430538713,10.1385424,212.96,212.91,0.68]
[1756430538903,10.1385424,212.97,212.91,14.27559401]
[1756430539211,0.66,213.0,212.88,26.0]
[1756430539212,10.1385424,213.0,212.94,10.1385424]
[1756430539515,10.1385424,213.01,212.95,10.1385424]
[1756430539694,10.1385424,213.01,212.97,4.69549701]
[1756430539893,10.1385424,213.02,212.97,5.37549701]
[1756430540087,10.1385424,213.03,212.97,27.25278195]
[1756430540310,10.1385424,213.04,212.98,0.68]
[1756430540508,10.1385424,213.02,212.98,0.68]
[1756430540711,10.1385424,213.02,212.97,16.43423955]
[1756430540895,40.34,213.05,212.98,0.68]
[1756430540896,10.1385424,213.03,212.98,0.68]
[1756430541206,10.1385424,213.03,212.97,16.43423955]
[1756430541510,0.66,213.05,212.97,16.43423955]
[1756430541715,10.1385424,212.99,212.94,4.69615854]
[1756430541900,10.1385424,213.0,212.94,27.25509729]
[1756430542101,10.1385424,213.0,212.94,17.11655489]
[1756430542608,0.66,213.04,212.94,17.11655489]
[1756430542805,10.1385424,213.0,212.94,97.81655489]
[1756430543123,10.1385424,213.03,212.97,10.1385424]
[1756430543317,10.1385424,213.0,212.94,107.27509729]
[1756430543614,10.1385424,212.98,212.94,97.13655489]
[1756430543817,10.1385424,212.98,212.94,16.43655489]
[1756430543986,0.66,213.02,212.94,16.43655489]
[1756430544190,10.1385424,212.99,212.94,4.69615854]
[1756430544389,10.1385424,212.99,212.92,81.38]
[1756430544390,0.66,212.98,212.92,4.69659966]
[1756430544591,10.1385424,212.95,212.92,4.69659966]
[1756430544797,10.1385424,212.94,212.92,4.69659966]
[1756430545217,10.1385424,212.95,212.92,4.69659966]
[1756430545610,40.26,212.98,212.92,4.69659966]
[1756430545796,10.1385424,212.96,212.92,4.69659966]
[1756430546204,10.1385424,212.95,212.92,4.69659966]
[1756430546400,39.58,213.0,212.93,0.68]
[1756430546599,10.1385424,213.0,212.94,10.1385424]
[1756430547188,10.1385424,212.99,212.93,10.8185424]
[1756430547710,40.24,213.02,212.94,10.8185424]
[1756430548015,10.1385424,213.0,212.95,16.43578304]
[1756430548217,10.1385424,213.01,212.96,0.68]
[1756430548792,0.66,213.05,212.97,0.68]
[1756430548793,10.1385424,213.02,212.97,0.68]
[1756430549218,10.1385424,213.04,212.98,0.68]
[1756430549411,10.1385424,213.03,213.0,26.0]
[1756430549811,39.52,213.04,213.01,30.69461527]
[1756430549812,10.1385424,213.04,213.01,30.69461527]
[1756430550003,10.1385424,213.03,213.01,30.69461527]
[1756430550819,10.1385424,213.04,213.01,30.69461527]
[1756430551201,10.1385424,213.03,213.01,30.69461527]
[1756430551422,0.06,213.08,213.01,30.69461527]
[1756430551631,6.62431594,213.04,213.01,30.69461527]
[1756430552095,0.75,213.08,213.01,30.69461527]
[1756430552291,6.68431594,213.08,213.02,0.67]
[1756430552523,0.06,213.08,213.02,0.67]
[1756430552711,6.62431594,213.06,213.01,42.43115346]
[1756430552930,6.62431594,213.04,213.01,30.69461527]
[1756430553099,0.69,213.05,213.01,30.69461527]
[1756430553420,0.06,213.08,213.02,0.67]
[1756430553421,0.75,213.08,213.02,0.67]
[1756430553601,0.06,213.08,213.02,113.99431594]
[1756430553799,0.06,213.08,213.03,4.69417452]
[1756430554709,0.06,213.08,213.03,5.36417452]
[1756430554911,0.06,213.08,213.04,0.67]
[1756430555229,0.06,213.08,213.03,4.69417452]
[1756430555429,0.06,213.08,213.05,6.62431594]
[1756430556022,0.06,213.08,213.06,11.9878295]
[1756430556223,0.06,213.08,213.06,5.36351356]
[1756430556424,0.06,213.08,213.06,4.69351356]
[1756430556625,0.06,213.08,213.07,0.67]
[1756430557809,0.06,213.08,213.07,5.36329328]
[1756430558004,6.68431594,213.08,213.04,4.69395418]
[1756430558204,0.06,213.08,213.04,4.69395418]
[1756430558416,6.68431594,213.08,213.04,4.69395418]
[1756430558614,6.68431594,213.08,213.04,5.36395418]
[1756430559330,3.3754995,213.07,213.05,0.67]
[1756430559630,0.06,213.08,213.05,0.67]
[1756430559825,3.37427942,213.07,213.04,4.69395418]
[1756430560125,9.99859536,213.07,213.04,0.67]
[1756430560429,0.06,213.08,213.05,0.67]
[1756430560620,0.06,213.08,213.03,23.05392678]
[1756430560932,6.62431594,213.04,213.0,6.684316]
[1756430561104,6.62431594,213.02,213.0,11.37896184]
[1756430561303,6.62431594,213.03,213.0,11.37896184]
[1756430561538,3.37748038,213.02,213.0,5.36464584]
[1756430561830,0.69,213.07,213.0,5.36464584]
[1756430561831,6.62431594,213.05,213.0,5.36464584]
[1756430562030,3.37808033,213.04,213.0,5.36464584]
[1756430562435,6.62431594,213.02,212.96,5.3657175]
[1756430562606,3.37808033,213.01,212.97,6.62431594]
[1756430562807,3.37808033,213.0,212.96,23.0593272]
[1756430563018,3.38050919,212.99,212.97,0.67]
[1756430563331,6.62431594,213.01,212.98,0.67]
[1756430563510,3.38366449,213.0,212.98,0.67]
[1756430563708,3.38366449,213.0,212.96,16.43501126]
[1756430563928,3.38366449,213.0,212.98,4.69527655]
[1756430564207,10.00798043,213.0,212.94,4.69615854]
[1756430564405,6.62431594,212.96,212.94,4.69615854]
[1756430564933,6.62431594,213.0,212.95,0.67]
[1756430565101,3.38556309,212.99,212.95,0.67]
[1756430565309,3.38556309,212.99,212.98,6.62431594]
[1756430565527,6.43442617,213.03,212.98,7.29431594]
[1756430565724,3.38556309,213.02,212.99,7.29431594]
[1756430565917,3.38556309,213.02,213.01,6.62431594]
[1756430566118,6.43472773,213.06,213.01,11.98893121]
[1756430566437,3.3887959,213.05,213.03,6.62431594]
[1756430566617,3.3887959,213.04,213.03,6.62431594]
[1756430566935,3.3887959,213.04,213.03,20.21990995]
[1756430567106,0.06,213.08,213.03,14.26559401]
[1756430567310,3.38882914,213.07,213.04,7.29431594]
[1756430567541,3.38882914,213.07,213.05,0.67]
[1756430567937,3.38882914,213.07,213.01,4.69461527]
[1756430568134,0.06,213.08,213.06,7.29431594]
[1756430568312,3.38956536,213.07,213.03,6.62431594]
[1756430568732,3.38956536,213.07,213.04,0.67]
[1756430568917,3.38956536,213.07,213.02,20.21990995]
[1756430569109,3.38956536,213.07,213.06,6.62431594]
[1756430569316,3.38956536,213.07,213.06,7.29431594]
[1756430569518,0.06,213.08,213.07,13.59559401]
[1756430569813,6.62431594,213.1,213.06,3.389566]
[1756430570012,6.62431594,213.1,213.07,4.69329328]
[1756430570213,3.05151109,213.09,213.05,4.69373386]
[1756430573152,6.62431594,212.98,212.94,0.67]
[1756430574060,6.62431594,212.98,212.95,4.69593801]
[1756430574737,6.62431594,212.97,212.95,4.69593801]
[1756430575543,0.69,213.0,212.95,4.69593801]
[1756430575544,6.62431594,212.98,212.95,4.69593801]
[1756430576128,6.62431594,212.98,212.93,14.26559401]
[1756430576448,6.62431594,212.98,212.94,0.67]
[1756430576639,6.62431594,212.98,212.95,0.67]
[1756430577240,6.62431594,212.97,212.93,13.59559401]
[1756430577549,6.62431594,212.97,212.94,0.67]
[1756430578148,6.62431594,212.97,212.95,4.69593801]
[1756430578453,29.81186484,213.08,212.95,85.39593801]
[1756430578657,6.62431594,212.98,212.95,85.39593801]
[1756430579441,6.62431594,212.97,212.95,85.39593801]
[1756430579664,6.62431594,212.98,212.95,85.39593801]
[1756430580162,43.23186484,213.07,212.95,85.39593801]
[1756430580163,6.62431594,212.97,212.95,80.7]
[1756430580372,6.62431594,212.96,212.95,80.7]
[1756430581574,6.62431594,212.96,212.95,85.39593801]
[1756430582370,7.34431594,212.96,212.91,4.69661416]
[1756430582669,6.62431594,212.92,212.91,4.69661416]
[1756430583468,6.62431594,212.93,212.91,4.69661416]
[1756430583678,6.62431594,212.92,212.91,4.69661416]
[1756430583872,6.62431594,213.0,212.91,4.69661416]
[1756430584177,6.62431594,212.93,212.91,86.08661416]
[1756430584355,4.53186484,213.02,212.92,0.69]
[1756430584567,3.39220807,213.01,212.93,13.59559401]
[1756430584760,6.62431594,212.98,212.94,0.69]
[1756430585070,6.62431594,212.99,212.95,0.69]
[1756430585248,6.62431594,212.98,212.95,0.69]
[1756430585748,6.62431594,212.96,212.91,97.13866479]
[1756430586067,6.62431594,212.94,212.91,17.12866479]
[1756430586678,6.62431594,212.95,212.92,14.28559401]
[1756430586980,6.62431594,212.93,212.91,11.74205063]
[1756430587159,6.62431594,212.92,212.9,4.69704086]
[1756430587557,6.62431594,212.91,212.88,80.7]
[1756430587877,6.62431594,212.89,212.86,0.03]
[1756430588189,3.39123367,212.88,212.86,0.03]
[1756430588359,6.62431594,212.87,212.86,0.03]
[1756430588557,7.34431594,212.87,212.86,0.03]
[1756430588983,13.78090907,212.87,212.86,0.03]
[1756430589979,3.38743673,212.87,212.86,0.03]
[1756430590177,6.62431594,212.87,212.86,0.03]
[1756430590782,7.34431594,212.87,212.86,0.03]
[1756430591075,10.72693128,212.87,212.86,0.03]
[1756430591280,7.34431594,212.87,212.86,0.03]
[1756430591454,10.72713589,212.87,212.86,0.03]
[1756430591655,13.76975945,212.87,212.86,0.03]
[1756430592266,26.28432314,212.86,212.84,0.03]
[1756430592469,84.969893,212.85,212.74,9.4260684]
[1756430592655,6.62431594,212.75,212.74,9.4260684]
[1756430592855,6.62431594,212.75,212.74,4.70055878]
[1756430593052,6.62431594,212.75,212.69,11.75412955]
[1756430593256,6.62431594,212.72,212.7,1.60679107]
[1756430593457,0.28432314,212.84,212.73,4.700559]
[1756430593688,6.62431594,212.74,212.73,4.700559]
[1756430594083,6.62431594,212.76,212.73,5.390559]
[1756430594287,6.62431594,212.75,212.73,5.390559]
[1756430594466,6.62431594,212.74,212.73,4.700559]
[1756430594664,0.72,212.78,212.73,4.700559]
[1756430594865,39.32,212.79,212.73,5.390559]
[1756430595086,6.62431594,212.74,212.73,4.700559]
[1756430595294,0.72,212.74,212.7,0.91679107]
[1756430595498,6.62431594,212.71,212.7,0.91679107]
[1756430595792,6.62431594,212.74,212.7,5.61824852]
[1756430595990,6.62431594,212.73,212.7,5.61824852]
[1756430596183,0.72,212.76,212.7,5.61824852]
[1756430596184,6.62431594,212.72,212.7,5.61824852]
[1756430596491,6.62431594,212.71,212.7,5.61824852]
[1756430596682,6.62431594,212.71,212.7,0.91679107]
[1756430596882,6.62431594,212.71,212.7,5.61824852]
[1756430597094,6.62431594,212.73,212.7,6.30824852]
[1756430597390,26.0,212.82,212.71,7.31431594]
[1756430597610,6.62431594,212.85,212.72,14.28559401]
[1756430597611,39.44,212.84,212.72,14.28559401]
[1756430597789,6.62431594,212.8,212.73,7.31431594]
[1756430597974,6.62431594,212.8,212.74,0.69]
[1756430598494,6.62431594,212.8,212.74,21.44692694]
[1756430598674,6.62431594,212.75,212.74,14.132611]
[1756430598995,6.62431594,212.75,212.7,0.91679107]
[1756430599192,26.0,212.83,212.7,0.91679107]
[1756430599193,6.62431594,212.76,212.71,5.39123642]
[1756430599377,6.62431594,212.77,212.74,14.132611]
[1756430599576,6.62431594,212.77,212.74,14.822611]
[1756430599784,6.62431594,212.79,212.75,0.69]
[1756430599986,6.62431594,212.77,212.74,14.132611]
[1756430600186,6.62431594,212.75,212.74,14.132611]
[1756430601095,26.72,212.82,212.74,18.83318446]
[1756430601295,6.62431594,212.75,212.74,18.83318446]
[1756430601498,0.72,212.79,212.74,18.83307794]
[1756430601676,6.62431594,212.75,212.74,18.83307794]
[1756430602295,6.62431594,212.75,212.74,14.132611]
[1756430602699,7.34431594,212.75,212.7,0.91679107]
[1756430602891,6.62431594,212.71,212.7,0.91679107]
[1756430603290,7.34431594,212.71,212.7,0.91679107]
[1756430604174,46.84431594,212.71,212.7,0.91679107]
[1756430604982,57.10448936,212.71,212.7,0.91679107]
[1756430605192,26.0,212.68,212.64,0.1]
[1756430605400,6.62431594,212.65,212.64,0.1]
[1756430605581,46.14431594,212.65,212.64,0.1]
[1756430605789,46.86431594,212.65,212.64,0.1]
[1756430606177,0.72,212.65,212.64,0.1]
[1756430606376,7.34431594,212.65,212.64,0.1]
[1756430606909,69.60524235,212.65,212.64,0.1]
[1756430607208,36.68955829,212.65,212.64,0.1]
[1756430607411,3.34524235,212.65,212.64,0.1]
[1756430607614,3.00883664,212.72,212.64,4.80278404]
[1756430607777,42.90326942,212.71,212.64,4.80278404]
[1756430607978,6.62431594,212.65,212.64,0.1]
[1756430608299,46.20431594,212.66,212.64,4.80278404]
[1756430608605,39.58,212.66,212.64,4.80278404]
[1756430608805,0.72,212.75,212.65,0.69]
[1756430609027,6.62431594,212.7,212.65,0.69]
[1756430609197,6.62431594,212.7,212.66,5.39234176]
[1756430609400,6.62431594,212.69,212.67,0.69]
[1756430609618,6.62431594,212.71,212.68,0.69]
[1756430610124,6.62431594,212.71,212.69,0.67]
[1756430610309,6.62431594,212.72,212.69,0.67]
[1756430610515,0.67,212.78,212.7,0.67]
[1756430610711,6.62431594,212.71,212.65,0.67]
[1756430610902,0.14216157,212.76,212.64,0.1]
[1756430611106,6.62431594,212.66,212.64,0.1]
[1756430611432,6.62431594,212.66,212.64,4.80275373]
[1756430611632,6.62431594,212.65,212.64,0.1]
[1756430611804,46.22431594,212.68,212.65,0.67]
[1756430612001,0.67,212.74,212.66,0.67]
[1756430612313,6.62431594,212.72,212.66,0.67]
[1756430612527,6.62431594,212.73,212.67,6.62431594]
[1756430612732,6.62431594,212.73,212.66,0.67]
[1756430612733,33.9,212.8,212.68,0.67]
[1756430613030,33.9,212.8,212.65,0.31432314]
[1756430613031,6.62431594,212.69,212.65,0.03]
[1756430613238,6.62431594,212.68,212.65,0.03]
[1756430613534,6.62431594,212.69,212.66,0.67]
[1756430613743,39.84,212.72,212.65,0.03]
[1756430613927,6.62431594,212.69,212.67,0.67]
[1756430614110,6.62431594,212.68,212.65,0.03]
[1756430614301,39.84,212.72,212.66,0.67]
[1756430614501,39.84,212.72,212.65,0.03]
[1756430614502,6.62431594,212.68,212.65,0.03]
[1756430614926,39.84,212.72,212.66,0.67]
[1756430615133,6.62431594,212.71,212.67,4.70212065]
[1756430615306,6.62431594,212.68,212.65,4.73236476]
[1756430615628,6.62431594,212.66,212.65,4.73236476]
[1756430615827,26.0,212.77,212.65,4.73236476]
[1756430616030,34.57,212.8,212.67,6.62431594]
[1756430616225,39.8,212.79,212.68,0.67]
[1756430616415,6.62431594,212.69,212.65,21.221136]
[1756430616619,40.47,212.79,212.65,21.891136]
[1756430616620,6.62431594,212.68,212.65,21.891136]
[1756430616815,6.62431594,212.67,212.65,10.13472876]
[1756430617019,6.62431594,212.66,212.65,0.03]
[1756430617521,7.29431594,212.66,212.65,0.03]
[1756430617907,6.62431594,212.66,212.65,0.03]
[1756430618715,46.46431594,212.66,212.65,0.03]
[1756430619241,47.13431594,212.66,212.65,0.03]
[1756430619619,50.15337984,212.66,212.65,0.03]
[1756430619819,7.29431594,212.66,212.65,0.03]
[1756430620033,47.11431594,212.66,212.65,0.03]
[1756430620442,46.44431594,212.66,212.65,0.03]
[1756430620741,47.11431594,212.66,212.65,0.03]
[1756430620946,7.29431594,212.66,212.65,0.03]
[1756430621146,47.09431594,212.66,212.65,0.03]
[1756430621341,50.11479214,212.66,212.65,0.03]
[1756430621930,39.8,212.66,212.65,0.03]
[1756430622115,47.11431594,212.66,212.65,0.03]
[1756430622319,50.13586003,212.66,212.65,0.03]
[1756430622523,50.42018317,212.66,212.65,0.03]
[1756430623418,50.36018317,212.66,212.65,0.03]
[1756430623915,50.07586003,212.66,212.65,0.03]
[1756430624241,10.31586003,212.66,212.65,0.03]
[1756430624539,50.03586003,212.66,212.65,0.03]
[1756430624730,49.36586003,212.66,212.65,0.03]
[1756430625128,46.34431594,212.66,212.65,0.03]
[1756430625530,49.37477017,212.66,212.65,0.03]
[1756430625731,50.04477017,212.66,212.65,0.03]
[1756430626133,49.35477017,212.66,212.65,0.03]
[1756430626328,50.02477017,212.66,212.65,0.03]
[1756430626549,26.0,212.63,212.6,11.761385]
[1756430626720,42.69045423,212.62,212.53,0.67]
[1756430626921,6.62431594,212.57,212.53,0.67]
[1756430627144,6.62431594,212.58,212.54,12.431385]
[1756430627341,6.62431594,212.58,212.55,0.67]
[1756430627848,39.66,212.62,212.56,0.67]
[1756430628142,6.62431594,212.58,212.56,12.431385]
[1756430628328,6.62431594,212.58,212.57,0.67]
[1756430628642,0.67,212.64,212.55,0.67]
[1756430628843,6.62431594,212.58,212.56,0.67]
[1756430629145,6.62431594,212.58,212.57,12.431385]
[1756430629727,6.62431594,212.58,212.57,0.67]
[1756430629929,6.62431594,212.58,212.57,14.265594]
[1756430630448,6.62431594,212.58,212.57,0.67]
[1756430631024,26.0,212.64,212.57,0.67]
[1756430631218,6.62431594,212.58,212.57,0.67]
[1756430631833,6.62431594,212.58,212.54,0.67]
[1756430632057,0.67,212.63,212.56,26.0]
[1756430632239,6.62431594,212.57,212.56,26.0]
[1756430632636,6.62431594,212.57,212.56,26.67]
[1756430632835,7.29431594,212.57,212.54,0.03]
[1756430633031,6.62431594,212.55,212.54,0.03]
[1756430633254,9.66952071,212.55,212.54,0.03]
[1756430634653,3.04520477,212.55,212.54,0.03]
[1756430634855,3.04520477,212.57,212.54,0.7]
[1756430635051,6.62431594,212.55,212.54,0.7]
[1756430635441,39.74,212.61,212.54,0.7]
[1756430635644,6.62431594,212.56,212.54,0.7]
[1756430635868,39.74,212.61,212.54,0.7]
[1756430636056,6.62431594,212.55,212.54,0.7]
[1756430636256,6.62431594,212.55,212.54,0.03]
[1756430636762,9.67600105,212.55,212.54,0.03]
[1756430637060,6.62431594,212.55,212.54,0.03]
[1756430637272,9.67710386,212.55,212.54,0.03]
[1756430637448,6.62431594,212.55,212.54,0.03]
[1756430638360,0.67,212.6,212.54,0.03]
[1756430638563,3.05292868,212.6,212.54,0.03]
[1756430638751,4.44693011,212.67,212.55,0.67]
[1756430638952,6.62431594,212.59,212.55,0.67]
[1756430639164,6.62431594,212.59,212.56,0.67]
[1756430639469,0.06,212.65,212.57,0.67]
[1756430639666,6.62431594,212.63,212.57,0.67]
[1756430639969,6.62431594,212.62,212.58,4.70411139]
[1756430640271,0.06,212.65,212.61,6.62431594]
[1756430640453,0.06,212.65,212.62,6.62431594]
[1756430640772,0.06,212.65,212.59,0.95432314]
[1756430640773,39.84,212.76,212.65,13.59559401]
[1756430641074,3.05599695,212.75,212.71,6.62431594]
[1756430641278,6.62431594,212.83,212.74,6.62431594]
[1756430641445,6.62431594,212.83,212.75,0.68]
[1756430641647,0.72,212.83,212.72,13.59559401]
[1756430641947,6.62431594,212.78,212.76,4.7001316]
[1756430642259,0.06,212.84,212.77,0.68]
[1756430642451,6.62431594,212.81,212.77,0.68]
[1756430642650,10.01781711,212.8,212.78,0.68]
[1756430642948,10.01771365,212.79,212.76,4.7001316]
[1756430643179,3.39339771,212.78,212.76,4.7001316]
[1756430643376,3.39339771,212.77,212.76,4.7001316]
[1756430643581,0.06,212.84,212.77,13.59559401]
[1756430643780,0.06,212.84,212.83,11.32290166]
[1756430643949,0.2,212.87,212.84,13.59559401]
[1756430646076,1e-08,212.87,212.8,40.58]
[1756430646255,6.62431594,212.85,212.8,0.68]
[1756430646475,6.62431594,212.84,212.81,0.68]
[1756430647298,1e-08,212.87,212.82,0.68]
[1756430647797,6.62431594,212.86,212.82,0.68]
[1756430648091,6.62431594,212.83,212.76,4.69306617]
[1756430648295,1e-08,212.87,212.76,5.38011504]
[1756430648296,6.62431594,212.81,212.76,5.38011504]
[1756430648591,6.62431594,212.82,212.77,0.68]
[1756430648804,6.62431594,212.81,212.77,0.68]
[1756430649105,6.62431594,212.8,212.76,4.65683173]
[1756430649395,0.72,212.83,212.74,0.68]
[1756430649603,6.62431594,212.8,212.74,0.68]
[1756430649897,1e-08,212.87,212.72,6.62431594]
[1756430649898,7.34431594,212.79,212.72,6.62431594]
[1756430650085,6.62431594,212.79,212.73,6.62431594]
[1756430650289,6.62431594,212.78,212.73,4.67772612]
[1756430650485,6.62431594,212.77,212.71,6.62431594]
[1756430650685,6.62431594,212.79,212.73,6.62431594]
[1756430651400,6.62431594,212.79,212.72,7.30431594]
[1756430651891,6.62431594,212.78,212.72,0.68]
[1756430652090,6.62431594,212.78,212.73,0.03]
[1756430652296,0.72,212.8,212.73,0.03]
[1756430652297,0.06,212.79,212.73,0.71]
[1756430652470,0.06,212.79,212.75,6.62431594]
[1756430652997,0.06,212.79,212.74,6.62431594]
[1756430653195,0.06,212.79,212.74,7.30431594]
[1756430653576,0.06,212.79,212.74,0.68]
[1756430653896,0.06,212.79,212.73,6.65431594]
[1756430653897,6.62431594,212.75,212.73,0.03]
[1756430654080,6.62431594,212.77,212.73,0.03]
[1756430654406,0.06,212.79,212.73,7.33431594]
[1756430654708,6.62431594,212.77,212.73,0.03]
[1756430654871,0.06,212.79,212.73,0.03]
[1756430655074,0.06,212.79,212.75,6.62431594]
[1756430655379,0.06,212.79,212.78,6.62431594]
[1756430656280,0.06,212.79,212.76,0.68]
[1756430656281,0.06,212.79,212.76,6.62431594]
[1756430656794,0.06,212.79,212.76,7.30431594]
[1756430657096,0.06,212.79,212.76,6.62431594]
[1756430657290,0.06,212.79,212.74,4.70056717]
[1756430657465,0.06,212.79,212.76,6.62431594]
[1756430657669,0.06,212.79,212.77,6.62431594]
[1756430658092,0.06,212.79,212.77,12.00402247]
[1756430658296,0.06,212.79,212.78,7.30431594]
[1756430658506,0.06,212.79,212.77,5.37970653]
[1756430659381,0.06,212.79,212.78,7.30431594]
[1756430659973,0.06,212.79,212.75,4.70035252]
[1756430660176,0.06,212.79,212.75,5.38035252]
[1756430660480,0.06,212.79,212.75,12.00466846]
[1756430660672,0.06,212.79,212.77,6.62431594]
[1756430660887,0.06,212.79,212.78,6.62431594]
[1756430661675,0.06,212.79,212.77,6.62431594]
[1756430661882,0.06,212.79,212.77,7.30431594]
[1756430662088,0.06,212.79,212.78,4.69968982]
[1756430662376,0.06,212.79,212.78,12.00400576]
[1756430663007,0.06,212.79,212.77,6.62431594]
[1756430663178,0.06,212.79,212.76,4.69996134]
[1756430663380,0.06,212.79,212.76,11.32427728]
[1756430663584,0.06,212.79,212.77,6.62431594]
[1756430663797,0.06,212.79,212.74,11.3248894]
[1756430664181,0.06,212.79,212.74,4.70057346]
[1756430664394,0.06,212.79,212.75,6.62431594]
[1756430664791,0.06,212.79,212.74,12.0048894]
[1756430665780,0.06,212.79,212.76,6.62431594]
[1756430665988,0.06,212.79,212.78,6.62431594]
[1756430666198,0.06,212.79,212.78,12.00400576]
[1756430666401,0.06,212.79,212.78,4.69968982]
[1756430667604,0.06,212.79,212.78,12.00400576]
[1756430667804,0.06,212.82,212.78,12.00400576]
[1756430667805,0.06,212.82,212.79,13.59559401]
[1756430668107,1e-08,212.82,212.81,24.91893725]
[1756430668407,1e-08,212.82,212.81,64.53893725]
[1756430668783,1e-08,212.82,212.81,12.00334324]
[1756430669996,1e-08,212.82,212.81,11.32334324]
[1756430670216,1e-08,212.82,212.81,12.00334324]
[1756430670783,1e-08,212.82,212.81,11.32334324]
[1756430670996,1e-08,212.82,212.81,12.00334324]
[1756430671199,1e-08,212.82,212.8,4.6992432]
[1756430671386,7.30431595,212.82,212.78,4.69968982]
[1756430672087,7.30431595,212.82,212.77,4.7299107]
[1756430672300,7.30431595,212.82,212.78,6.62431594]
[1756430672301,0.68000001,212.82,212.78,6.62431594]
[1756430672491,1e-08,212.82,212.81,6.62431594]
[1756430673806,1e-08,212.82,212.77,4.7299107]
[1756430674113,1e-08,212.82,212.77,11.35422664]